[Event "Titled Tuesday Blitz April 4 Early 2023"]
[White "Jessel, Stephen"]
[Black "Andreev, Konstantin"]
[WhiteFideId "628859"]
[BlackFideId "24239305"]
[WhiteElo "2268"]
[BlackElo "2106"]
[Result "0-1"]
[Round "05"]
[TimeControl "180+2"]
[Date "2023.04.04"]
[WhiteClock "0:00:01"]
[BlackClock "0:00:20"]

1. Nf3 {[%clk 0:02:50]}  Nf6 {[%clk 0:02:59]} 2. g3 {[%clk 0:02:48]}  b5 {[%clk 0:02:57]} 3. Bg2 {[%clk 0:02:48]}  Bb7 {[%clk 0:02:57]} 4. O-O {[%clk 0:02:48]}  e6 {[%clk 0:02:57]} 5. b3 {[%clk 0:02:45]}  Be7 {[%clk 0:02:56]} 6. a4 {[%clk 0:02:45]}  b4 {[%clk 0:02:55]} 7. Bb2 {[%clk 0:02:39]}  O-O {[%clk 0:02:48]} 8. d3 {[%clk 0:02:36]}  c5 {[%clk 0:02:45]} 9. Nbd2 {[%clk 0:02:32]}  d5 {[%clk 0:02:40]} 10. e4 {[%clk 0:02:25]}  dxe4 {[%clk 0:02:38]} 11. Ng5 {[%clk 0:02:26]}  h6 {[%clk 0:02:31]} 12. Ngxe4 {[%clk 0:02:26]}  Nxe4 {[%clk 0:02:30]} 13. Nxe4 {[%clk 0:02:21]}  Nd7 {[%clk 0:02:28]} 14. Qg4 {[%clk 0:01:54]}  e5 {[%clk 0:02:19]} 15. Qe2 {[%clk 0:01:29]}  Qc7 {[%clk 0:02:14]} 16. f4 {[%clk 0:01:18]}  exf4 {[%clk 0:02:02]} 17. Rxf4 {[%clk 0:01:14]}  Rae8 {[%clk 0:02:02]} 18. Qg4 {[%clk 0:01:09]}  Ne5 {[%clk 0:01:56]} 19. Qf5 {[%clk 0:00:46]}  Ng6 {[%clk 0:01:49]} 20. Rf2 {[%clk 0:00:39]}  Bxe4 {[%clk 0:01:18]} 21. Bxe4 {[%clk 0:00:38]}  Bg5 {[%clk 0:01:19]} 22. Kh1 {[%clk 0:00:29]}  Be3 {[%clk 0:01:10]} 23. Re2 {[%clk 0:00:19]}  Bd4 {[%clk 0:01:08]} 24. Bxd4 {[%clk 0:00:19]}  cxd4 {[%clk 0:01:08]} 25. Rf1 {[%clk 0:00:19]}  Re5 {[%clk 0:01:06]} 26. Qf3 {[%clk 0:00:20]}  Qd6 {[%clk 0:01:01]} 27. Ref2 {[%clk 0:00:12]}  Ne7 {[%clk 0:00:51]} 28. g4 {[%clk 0:00:12]}  Qd7 {[%clk 0:00:44]} 29. Qg3 {[%clk 0:00:11]}  Rg5 {[%clk 0:00:42]} 30. h3 {[%clk 0:00:12]}  f5 {[%clk 0:00:42]} 31. Bf3 {[%clk 0:00:07]}  fxg4 {[%clk 0:00:36]} 32. hxg4 {[%clk 0:00:07]}  Ng6 {[%clk 0:00:32]} 33. Be4 {[%clk 0:00:06]}  Rxg4 {[%clk 0:00:27]} 34. Rxf8+ {[%clk 0:00:06]}  Nxf8 {[%clk 0:00:27]} 35. Qh2 {[%clk 0:00:02]}  Qe7 {[%clk 0:00:25]} 36. Bf5 {[%clk 0:00:01]}  Rh4 {[%clk 0:00:24]} 37. Bh3 {[%clk 0:00:01]}  Qe3 {[%clk 0:00:20]} 0-1


[Site "https://www.chess.com"]

[Event "Titled Tuesday Blitz April 4 Early 2023"]
[White "Berezin, Viktor"]
[Black "Makarian, Rudik"]
[WhiteFideId "14107872"]
[BlackFideId "44105681"]
[WhiteElo "2310"]
[BlackElo "2430"]
[Result "1-0"]
[Round "05"]
[TimeControl "180+2"]
[Date "2023.04.04"]
[WhiteClock "0:00:17"]
[BlackClock "0:00:03"]

1. d4 {[%clk 0:03:00]}  Nf6 {[%clk 0:01:30]} 2. Nf3 {[%clk 0:02:55]}  c5 {[%clk 0:01:29]} 3. d5 {[%clk 0:02:55]}  b5 {[%clk 0:01:29]} 4. c4 {[%clk 0:02:53]}  b4 {[%clk 0:01:29]} 5. Qc2 {[%clk 0:02:53]}  g6 {[%clk 0:00:40]} 6. e4 {[%clk 0:02:52]}  d6 {[%clk 0:00:37]} 7. Bd3 {[%clk 0:02:49]}  Bg7 {[%clk 0:00:36]} 8. h3 {[%clk 0:02:47]}  O-O {[%clk 0:00:37]} 9. O-O {[%clk 0:02:48]}  e5 {[%clk 0:00:37]} 10. a3 {[%clk 0:02:47]}  a5 {[%clk 0:00:34]} 11. axb4 {[%clk 0:02:42]}  cxb4 {[%clk 0:00:35]} 12. c5 {[%clk 0:02:42]}  dxc5 {[%clk 0:00:34]} 13. Qxc5 {[%clk 0:02:37]}  Nbd7 {[%clk 0:00:33]} 14. Qc2 {[%clk 0:02:33]}  Nh5 {[%clk 0:00:33]} 15. Bb5 {[%clk 0:02:30]}  Nf4 {[%clk 0:00:32]} 16. Bxf4 {[%clk 0:02:25]}  exf4 {[%clk 0:00:33]} 17. Bc6 {[%clk 0:02:22]}  Ra7 {[%clk 0:00:32]} 18. Nbd2 {[%clk 0:02:22]}  Ne5 {[%clk 0:00:29]} 19. Nxe5 {[%clk 0:02:21]}  Bxe5 {[%clk 0:00:30]} 20. Nc4 {[%clk 0:02:20]}  Bg7 {[%clk 0:00:29]} 21. Nd2 {[%clk 0:02:07]}  g5 {[%clk 0:00:26]} 22. Qc5 {[%clk 0:02:02]}  Re7 {[%clk 0:00:21]} 23. Rxa5 {[%clk 0:01:59]}  Re5 {[%clk 0:00:15]} 24. Qxb4 {[%clk 0:01:55]}  g4 {[%clk 0:00:14]} 25. hxg4 {[%clk 0:01:51]}  Bxg4 {[%clk 0:00:15]} 26. Rfa1 {[%clk 0:01:45]}  Qh4 {[%clk 0:00:13]} 27. f3 {[%clk 0:01:31]}  Rh5 {[%clk 0:00:10]} 28. Ra8 {[%clk 0:01:14]}  Qh2+ {[%clk 0:00:06]} 29. Kf2 {[%clk 0:01:13]}  Bh3 {[%clk 0:00:06]} 30. Rxf8+ {[%clk 0:00:51]}  Bxf8 {[%clk 0:00:07]} 31. Ra8 {[%clk 0:00:51]}  Qxg2+ {[%clk 0:00:07]} 32. Ke1 {[%clk 0:00:52]}  Qg1+ {[%clk 0:00:07]} 33. Ke2 {[%clk 0:00:52]}  Qg7 {[%clk 0:00:03]} 34. Kd3 {[%clk 0:00:41]}  Rg5 {[%clk 0:00:02]} 35. d6 {[%clk 0:00:39]}  h5 {[%clk 0:00:02]} 36. d7 {[%clk 0:00:39]}  Bxd7 {[%clk 0:00:02]} 37. Bxd7 {[%clk 0:00:40]}  h4 {[%clk 0:00:02]} 38. Qe7 {[%clk 0:00:32]}  Rg6 {[%clk 0:00:02]} 39. Kc2 {[%clk 0:00:28]}  h3 {[%clk 0:00:02]} 40. Bxh3 {[%clk 0:00:27]}  Rc6+ {[%clk 0:00:03]} 41. Kb1 {[%clk 0:00:25]}  Rb6 {[%clk 0:00:03]} 42. Nc4 {[%clk 0:00:23]}  Rh6 {[%clk 0:00:02]} 43. Bf5 {[%clk 0:00:23]}  Rh1+ {[%clk 0:00:01]} 44. Ka2 {[%clk 0:00:23]}  Rh2 {[%clk 0:00:02]} 45. e5 {[%clk 0:00:22]}  Rf2 {[%clk 0:00:02]} 46. e6 {[%clk 0:00:22]}  fxe6 {[%clk 0:00:01]} 47. Bxe6+ {[%clk 0:00:22]}  Kh7 {[%clk 0:00:01]} 48. Qh4+ {[%clk 0:00:22]}  Kg6 {[%clk 0:00:01]} 49. Qxf2 {[%clk 0:00:22]}  Qb7 {[%clk 0:00:01]} 50. Rxf8 {[%clk 0:00:18]}  Qa6+ {[%clk 0:00:01]} 51. Kb1 {[%clk 0:00:17]}  Qxe6 {[%clk 0:00:02]} 52. Rxf4 {[%clk 0:00:17]}  Qd5 {[%clk 0:00:01]} 53. Qd4 {[%clk 0:00:16]}  Kh5 {[%clk 0:00:02]} 54. Qxd5+ {[%clk 0:00:17]}  Kg6 {[%clk 0:00:03]} 1-0


[Site "https://www.chess.com"]

[Event "Titled Tuesday Blitz April 4 Early 2023"]
[White "Horak, Martin"]
[Black "Lobanov, Sergei"]
[WhiteFideId "367095"]
[BlackFideId "24183750"]
[WhiteElo "2091"]
[BlackElo "2489"]
[Result "1-0"]
[Round "05"]
[TimeControl "180+2"]
[Date "2023.04.04"]
[WhiteClock "0:00:03"]
[BlackClock "0:00:04"]

1. e4 {[%clk 0:03:00]}  e5 {[%clk 0:03:00]} 2. f4 {[%clk 0:03:00]}  d5 {[%clk 0:02:56]} 3. exd5 {[%clk 0:03:00]}  exf4 {[%clk 0:02:57]} 4. Nf3 {[%clk 0:03:00]}  Nf6 {[%clk 0:02:55]} 5. Bb5+ {[%clk 0:03:01]}  c6 {[%clk 0:02:47]} 6. dxc6 {[%clk 0:03:02]}  Nxc6 {[%clk 0:02:47]} 7. d4 {[%clk 0:02:58]}  Bd6 {[%clk 0:02:40]} 8. O-O {[%clk 0:02:57]}  O-O {[%clk 0:02:40]} 9. c3 {[%clk 0:02:36]}  Ne7 {[%clk 0:02:37]} 10. Nbd2 {[%clk 0:02:32]}  Be6 {[%clk 0:02:16]} 11. Bd3 {[%clk 0:02:27]}  Qc7 {[%clk 0:02:05]} 12. Qc2 {[%clk 0:02:19]}  h6 {[%clk 0:01:58]} 13. Ne4 {[%clk 0:02:18]}  Nxe4 {[%clk 0:01:58]} 14. Bxe4 {[%clk 0:02:19]}  Rac8 {[%clk 0:01:50]} 15. Bd2 {[%clk 0:01:39]}  b5 {[%clk 0:01:50]} 16. Rae1 {[%clk 0:01:36]}  b4 {[%clk 0:01:45]} 17. Ne5 {[%clk 0:00:49]}  Bxe5 {[%clk 0:01:45]} 18. Bh7+ {[%clk 0:00:49]}  Kh8 {[%clk 0:01:45]} 19. Rxe5 {[%clk 0:00:44]}  bxc3 {[%clk 0:01:35]} 20. bxc3 {[%clk 0:00:43]}  g6 {[%clk 0:00:59]} 21. Rxe6 {[%clk 0:00:34]}  fxe6 {[%clk 0:00:54]} 22. Bxg6 {[%clk 0:00:34]}  Nxg6 {[%clk 0:00:37]} 23. Qxg6 {[%clk 0:00:34]}  Qg7 {[%clk 0:00:38]} 24. Qxe6 {[%clk 0:00:29]}  Rce8 {[%clk 0:00:37]} 25. Qh3 {[%clk 0:00:16]}  Re2 {[%clk 0:00:15]} 26. Bxf4 {[%clk 0:00:13]}  Kg8 {[%clk 0:00:12]} 27. Be5 {[%clk 0:00:09]}  Rxf1+ {[%clk 0:00:05]} 28. Kxf1 {[%clk 0:00:09]}  Rxe5 {[%clk 0:00:05]} 29. dxe5 {[%clk 0:00:10]}  Qf7+ {[%clk 0:00:04]} 30. Qf3 {[%clk 0:00:08]}  Qxa2 {[%clk 0:00:05]} 31. Qg4+ {[%clk 0:00:08]}  Kf7 {[%clk 0:00:05]} 32. Qf5+ {[%clk 0:00:08]}  Ke8 {[%clk 0:00:05]} 33. e6 {[%clk 0:00:07]}  Qc4+ {[%clk 0:00:04]} 34. Kf2 {[%clk 0:00:07]}  Qc7 {[%clk 0:00:02]} 35. h3 {[%clk 0:00:04]}  Qb6+ {[%clk 0:00:02]} 36. Kg3 {[%clk 0:00:03]}  Qc7+ {[%clk 0:00:02]} 37. Kh4 {[%clk 0:00:03]}  Qe7+ {[%clk 0:00:03]} 38. Kh5 {[%clk 0:00:04]}  Qg7 {[%clk 0:00:03]} 39. Qg6+ {[%clk 0:00:02]}  Qxg6+ {[%clk 0:00:03]} 40. Kxg6 {[%clk 0:00:02]}  a6 {[%clk 0:00:04]} 41. Kf5 {[%clk 0:00:02]}  a5 {[%clk 0:00:04]} 42. Ke4 {[%clk 0:00:01]}  Ke7 {[%clk 0:00:05]} 43. Kd3 {[%clk 0:00:02]}  Kxe6 {[%clk 0:00:05]} 44. Kc4 {[%clk 0:00:02]}  Ke5 {[%clk 0:00:03]} 45. Kb5 {[%clk 0:00:03]}  Ke4 {[%clk 0:00:03]} 46. c4 {[%clk 0:00:03]}  Kd3 {[%clk 0:00:04]} 47. c5 {[%clk 0:00:03]} 1-0


[Site "https://www.chess.com"]

[Event "Titled Tuesday Blitz April 4 Early 2023"]
[White "Timofeev, Artyom"]
[Black "Demin, Vladimir"]
[WhiteFideId "4140419"]
[BlackFideId "4167457"]
[WhiteElo "2586"]
[BlackElo "2552"]
[Result "1-0"]
[Round "05"]
[TimeControl "180+2"]
[Date "2023.04.04"]
[WhiteClock "0:00:50"]
[BlackClock "0:00:08"]

1. c4 {[%clk 0:03:00]}  e6 {[%clk 0:02:54]} 2. Nc3 {[%clk 0:02:54]}  d5 {[%clk 0:02:53]} 3. d4 {[%clk 0:02:54]}  c5 {[%clk 0:02:50]} 4. Nf3 {[%clk 0:02:50]}  Nf6 {[%clk 0:02:44]} 5. cxd5 {[%clk 0:02:48]}  cxd4 {[%clk 0:02:40]} 6. Nxd4 {[%clk 0:02:46]}  Nxd5 {[%clk 0:02:39]} 7. e4 {[%clk 0:02:22]}  Nxc3 {[%clk 0:02:33]} 8. bxc3 {[%clk 0:02:22]}  Nc6 {[%clk 0:02:27]} 9. Nxc6 {[%clk 0:02:16]}  Qxd1+ {[%clk 0:02:25]} 10. Kxd1 {[%clk 0:02:16]}  bxc6 {[%clk 0:02:26]} 11. Be3 {[%clk 0:02:10]}  Bd6 {[%clk 0:02:07]} 12. Kc2 {[%clk 0:02:08]}  Ke7 {[%clk 0:02:05]} 13. Bc4 {[%clk 0:02:07]}  f5 {[%clk 0:00:53]} 14. exf5 {[%clk 0:02:03]}  exf5 {[%clk 0:00:52]} 15. Rhe1 {[%clk 0:02:02]}  Kd7 {[%clk 0:00:49]} 16. Bd4 {[%clk 0:01:49]}  Re8 {[%clk 0:00:36]} 17. Bxg7 {[%clk 0:01:37]}  Rxe1 {[%clk 0:00:33]} 18. Rxe1 {[%clk 0:01:37]}  Kc7 {[%clk 0:00:23]} 19. Be5 {[%clk 0:01:35]}  Bd7 {[%clk 0:00:22]} 20. f4 {[%clk 0:01:31]}  a5 {[%clk 0:00:20]} 21. Re3 {[%clk 0:01:14]}  Bxe5 {[%clk 0:00:12]} 22. Rxe5 {[%clk 0:01:12]}  a4 {[%clk 0:00:12]} 23. Re7 {[%clk 0:01:11]}  Kd6 {[%clk 0:00:10]} 24. Rxh7 {[%clk 0:01:11]}  Re8 {[%clk 0:00:10]} 25. g3 {[%clk 0:00:55]}  Re3 {[%clk 0:00:10]} 26. Kd2 {[%clk 0:00:52]}  Rf3 {[%clk 0:00:09]} 27. Be2 {[%clk 0:00:52]}  Rf2 {[%clk 0:00:08]} 28. Ke1 {[%clk 0:00:50]}  Rg2 {[%clk 0:00:08]} 29. Kf1 {[%clk 0:00:50]} 1-0


[Site "https://www.chess.com"]

[Event "Titled Tuesday Blitz April 4 Early 2023"]
[White "Francisco Guecamburu, Candela Be"]
[Black "Papasimakopoulos, Alexandros"]
[WhiteFideId "160911"]
[BlackFideId "4244125"]
[WhiteElo "2326"]
[BlackElo "2359"]
[Result "0-1"]
[Round "05"]
[TimeControl "180+2"]
[Date "2023.04.04"]
[WhiteClock "0:00:03"]
[BlackClock "0:00:18"]

1. e4 {[%clk 0:03:00]}  e6 {[%clk 0:02:50]} 2. d4 {[%clk 0:03:00]}  d5 {[%clk 0:02:44]} 3. Nc3 {[%clk 0:03:01]}  Bb4 {[%clk 0:02:43]} 4. Qd3 {[%clk 0:03:01]}  dxe4 {[%clk 0:02:42]} 5. Qxe4 {[%clk 0:03:02]}  Nf6 {[%clk 0:02:42]} 6. Qh4 {[%clk 0:03:02]}  Nc6 {[%clk 0:02:42]} 7. Nf3 {[%clk 0:03:01]}  Ne7 {[%clk 0:02:42]} 8. Bb5+ {[%clk 0:02:55]}  Bd7 {[%clk 0:02:32]} 9. Bxd7+ {[%clk 0:02:53]}  Qxd7 {[%clk 0:02:33]} 10. Ne5 {[%clk 0:02:50]}  Nf5 {[%clk 0:01:43]} 11. Nxd7 {[%clk 0:02:44]}  Nxh4 {[%clk 0:01:42]} 12. Nxf6+ {[%clk 0:02:39]}  gxf6 {[%clk 0:01:43]} 13. O-O {[%clk 0:02:35]}  Rg8 {[%clk 0:01:43]} 14. g3 {[%clk 0:02:26]}  Nf3+ {[%clk 0:01:43]} 15. Kg2 {[%clk 0:02:26]}  Nxd4 {[%clk 0:01:43]} 16. Ne4 {[%clk 0:02:26]}  Be7 {[%clk 0:01:38]} 17. c3 {[%clk 0:02:24]}  Nc6 {[%clk 0:01:31]} 18. Be3 {[%clk 0:02:22]}  f5 {[%clk 0:01:31]} 19. Nd2 {[%clk 0:02:19]}  O-O-O {[%clk 0:01:31]} 20. Nc4 {[%clk 0:02:19]}  Rd5 {[%clk 0:01:23]} 21. a4 {[%clk 0:02:19]}  Ne5 {[%clk 0:01:17]} 22. Nxe5 {[%clk 0:02:18]}  Rxe5 {[%clk 0:01:18]} 23. Bxa7 {[%clk 0:01:56]}  b6 {[%clk 0:01:13]} 24. a5 {[%clk 0:01:56]}  Kb7 {[%clk 0:01:13]} 25. axb6 {[%clk 0:01:57]}  cxb6 {[%clk 0:01:13]} 26. Rfd1 {[%clk 0:01:53]}  Rd5 {[%clk 0:01:13]} 27. c4 {[%clk 0:01:48]}  Rdd8 {[%clk 0:01:02]} 28. b4 {[%clk 0:01:13]}  Bxb4 {[%clk 0:00:59]} 29. Rdb1 {[%clk 0:01:13]}  Bc5 {[%clk 0:00:55]} 30. Bxb6 {[%clk 0:01:13]}  Bxb6 {[%clk 0:00:51]} 31. c5 {[%clk 0:01:13]}  Ra8 {[%clk 0:00:49]} 32. Rxb6+ {[%clk 0:01:12]}  Kc7 {[%clk 0:00:49]} 33. Rab1 {[%clk 0:00:50]}  Ra7 {[%clk 0:00:43]} 34. c6 {[%clk 0:00:46]}  Rga8 {[%clk 0:00:39]} 35. Kh3 {[%clk 0:00:41]}  h6 {[%clk 0:00:36]} 36. R1b2 {[%clk 0:00:30]}  Ra2 {[%clk 0:00:29]} 37. Rb7+ {[%clk 0:00:20]}  Kxc6 {[%clk 0:00:29]} 38. R2b6+ {[%clk 0:00:08]}  Kc5 {[%clk 0:00:29]} 39. Rb5+ {[%clk 0:00:08]}  Kc4 {[%clk 0:00:28]} 40. Rb4+ {[%clk 0:00:08]}  Kc3 {[%clk 0:00:28]} 41. Rb3+ {[%clk 0:00:08]}  Kc2 {[%clk 0:00:28]} 42. R3b6 {[%clk 0:00:05]}  R8a7 {[%clk 0:00:27]} 43. Rc6+ {[%clk 0:00:05]}  Kd3 {[%clk 0:00:25]} 44. Rcc7 {[%clk 0:00:03]}  Rxb7 {[%clk 0:00:24]} 45. Rxb7 {[%clk 0:00:04]}  Rxf2 {[%clk 0:00:18]} 46. Rxf7 {[%clk 0:00:05]}  e5 {[%clk 0:00:18]} 47. g4 {[%clk 0:00:03]}  fxg4+ {[%clk 0:00:18]} 48. Kxg4 {[%clk 0:00:03]}  Rxf7 {[%clk 0:00:18]} 0-1


[Site "https://www.chess.com"]

[Event "Titled Tuesday Blitz April 4 Early 2023"]
[White "Bronstein, Or"]
[Black "Gurevich, Dmitry"]
[WhiteFideId "2815770"]
[BlackFideId "2000407"]
[WhiteElo "2356"]
[BlackElo "2506"]
[Result "1-0"]
[Round "05"]
[TimeControl "180+2"]
[Date "2023.04.04"]
[WhiteClock "0:00:15"]
[BlackClock "0:00:07"]

1. e4 {[%clk 0:03:00]}  c5 {[%clk 0:02:16]} 2. Nf3 {[%clk 0:02:59]}  d6 {[%clk 0:02:16]} 3. Bb5+ {[%clk 0:02:57]}  Bd7 {[%clk 0:02:15]} 4. Bxd7+ {[%clk 0:02:57]}  Qxd7 {[%clk 0:02:15]} 5. c4 {[%clk 0:02:56]}  Nc6 {[%clk 0:02:15]} 6. d4 {[%clk 0:02:56]}  cxd4 {[%clk 0:02:14]} 7. Nxd4 {[%clk 0:02:57]}  Nf6 {[%clk 0:02:14]} 8. Nc3 {[%clk 0:02:57]}  e6 {[%clk 0:02:14]} 9. O-O {[%clk 0:02:56]}  Be7 {[%clk 0:02:14]} 10. b3 {[%clk 0:02:54]}  O-O {[%clk 0:02:13]} 11. Bb2 {[%clk 0:02:54]}  Rfd8 {[%clk 0:02:13]} 12. Re1 {[%clk 0:02:54]}  b6 {[%clk 0:02:13]} 13. Nxc6 {[%clk 0:02:53]}  Qxc6 {[%clk 0:02:13]} 14. Qf3 {[%clk 0:02:48]}  a6 {[%clk 0:02:10]} 15. Rac1 {[%clk 0:02:47]}  Rac8 {[%clk 0:02:04]} 16. Qd3 {[%clk 0:02:36]}  Qb7 {[%clk 0:02:00]} 17. h3 {[%clk 0:02:31]}  Rb8 {[%clk 0:01:57]} 18. a4 {[%clk 0:01:28]}  Rbc8 {[%clk 0:01:55]} 19. Qg3 {[%clk 0:01:26]}  Bf8 {[%clk 0:01:49]} 20. Rcd1 {[%clk 0:01:22]}  Nd7 {[%clk 0:01:46]} 21. Re3 {[%clk 0:01:09]}  Nc5 {[%clk 0:01:44]} 22. Qg4 {[%clk 0:00:46]}  Nxb3 {[%clk 0:01:36]} 23. Rg3 {[%clk 0:00:46]}  g6 {[%clk 0:01:32]} 24. Qf4 {[%clk 0:00:41]}  Nc5 {[%clk 0:01:17]} 25. Nd5 {[%clk 0:00:37]}  e5 {[%clk 0:00:57]} 26. Nf6+ {[%clk 0:00:31]}  Kh8 {[%clk 0:00:55]} 27. Qh4 {[%clk 0:00:26]}  h6 {[%clk 0:00:45]} 28. Bc1 {[%clk 0:00:22]}  h5 {[%clk 0:00:07]} 29. Rg5 {[%clk 0:00:15]} 1-0


[Site "https://www.chess.com"]

[Event "Titled Tuesday Blitz April 4 Early 2023"]
[White "koncheto"]
[Black "Kosteniuk, Alexandra"]
[BlackFideId "4128125"]
[WhiteElo "2528"]
[BlackElo "2453"]
[Result "1/2-1/2"]
[Round "05"]
[TimeControl "180+2"]
[Date "2023.04.04"]
[WhiteClock "0:00:10"]
[BlackClock "0:00:16"]

1. e4 {[%clk 0:03:00]}  c5 {[%clk 0:02:59]} 2. Nf3 {[%clk 0:03:00]}  e6 {[%clk 0:02:59]} 3. d4 {[%clk 0:03:01]}  cxd4 {[%clk 0:02:59]} 4. Nxd4 {[%clk 0:03:01]}  Nc6 {[%clk 0:02:59]} 5. Nc3 {[%clk 0:02:59]}  Nf6 {[%clk 0:03:00]} 6. Nxc6 {[%clk 0:02:56]}  bxc6 {[%clk 0:03:00]} 7. e5 {[%clk 0:02:56]}  Nd5 {[%clk 0:03:00]} 8. Ne4 {[%clk 0:02:57]}  Qc7 {[%clk 0:03:00]} 9. f4 {[%clk 0:02:57]}  f5 {[%clk 0:03:01]} 10. exf6 {[%clk 0:02:57]}  gxf6 {[%clk 0:03:01]} 11. Bd3 {[%clk 0:02:38]}  Nxf4 {[%clk 0:02:28]} 12. Nxf6+ {[%clk 0:02:26]}  Kd8 {[%clk 0:02:28]} 13. O-O {[%clk 0:02:09]}  Bd6 {[%clk 0:02:19]} 14. Ne4 {[%clk 0:01:33]}  e5 {[%clk 0:01:53]} 15. Qg4 {[%clk 0:01:02]}  Qb6+ {[%clk 0:01:36]} 16. Kh1 {[%clk 0:00:59]}  Nxd3 {[%clk 0:01:35]} 17. cxd3 {[%clk 0:00:49]}  Kc7 {[%clk 0:01:18]} 18. Nxd6 {[%clk 0:00:19]}  Kxd6 {[%clk 0:01:19]} 19. Qg7 {[%clk 0:00:14]}  Re8 {[%clk 0:01:17]} 20. d4 {[%clk 0:00:10]}  Qxd4 {[%clk 0:01:05]} 21. Bf4 {[%clk 0:00:09]}  Re7 {[%clk 0:00:45]} 22. Qf6+ {[%clk 0:00:06]}  Re6 {[%clk 0:00:45]} 23. Qg7 {[%clk 0:00:05]}  Kc7 {[%clk 0:00:38]} 24. Rad1 {[%clk 0:00:04]}  Qxb2 {[%clk 0:00:37]} 25. Rfe1 {[%clk 0:00:04]}  Rb8 {[%clk 0:00:24]} 26. Bxe5+ {[%clk 0:00:05]}  Rxe5 {[%clk 0:00:25]} 27. Rxe5 {[%clk 0:00:04]}  Rb5 {[%clk 0:00:19]} 28. Rde1 {[%clk 0:00:03]}  Qc3 {[%clk 0:00:14]} 29. Qg3 {[%clk 0:00:03]}  Qxg3 {[%clk 0:00:13]} 30. hxg3 {[%clk 0:00:04]}  Rb2 {[%clk 0:00:13]} 31. R1e2 {[%clk 0:00:04]}  Rb1+ {[%clk 0:00:13]} 32. Kh2 {[%clk 0:00:05]}  Ba6 {[%clk 0:00:10]} 33. R2e3 {[%clk 0:00:04]}  Bc4 {[%clk 0:00:10]} 34. a4 {[%clk 0:00:04]}  Bd5 {[%clk 0:00:09]} 35. Re2 {[%clk 0:00:03]}  Rb4 {[%clk 0:00:09]} 36. Rh5 {[%clk 0:00:04]}  Rxa4 {[%clk 0:00:08]} 37. Rxh7 {[%clk 0:00:04]}  Rd4 {[%clk 0:00:05]} 38. Kh3 {[%clk 0:00:03]}  Rd3 {[%clk 0:00:05]} 39. Kh4 {[%clk 0:00:03]}  a5 {[%clk 0:00:05]} 40. g4 {[%clk 0:00:03]}  a4 {[%clk 0:00:05]} 41. Rh8 {[%clk 0:00:04]}  Rd4 {[%clk 0:00:05]} 42. Ra8 {[%clk 0:00:04]}  Be6 {[%clk 0:00:05]} 43. Kg5 {[%clk 0:00:03]}  Rxg4+ {[%clk 0:00:05]} 44. Kf6 {[%clk 0:00:04]}  Rb4 {[%clk 0:00:05]} 45. g3 {[%clk 0:00:03]}  Rb3 {[%clk 0:00:04]} 46. Rxa4 {[%clk 0:00:02]}  Rf3+ {[%clk 0:00:04]} 47. Kg5 {[%clk 0:00:02]}  Rxg3+ {[%clk 0:00:05]} 48. Kh4 {[%clk 0:00:02]}  Rd3 {[%clk 0:00:05]} 49. Ra7+ {[%clk 0:00:03]}  Kd6 {[%clk 0:00:05]} 50. Ra4 {[%clk 0:00:04]}  c5 {[%clk 0:00:06]} 51. Kg5 {[%clk 0:00:03]}  c4 {[%clk 0:00:06]} 52. Rc2 {[%clk 0:00:03]}  Rd5+ {[%clk 0:00:06]} 53. Kf4 {[%clk 0:00:04]}  Rc5 {[%clk 0:00:07]} 54. Ke3 {[%clk 0:00:04]}  Ke7 {[%clk 0:00:07]} 55. Kd4 {[%clk 0:00:04]}  Rc6 {[%clk 0:00:08]} 56. Ra5 {[%clk 0:00:03]}  Rd6+ {[%clk 0:00:08]} 57. Kc3 {[%clk 0:00:03]}  Rc6 {[%clk 0:00:09]} 58. Rh5 {[%clk 0:00:03]}  Rb6 {[%clk 0:00:09]} 59. Rd2 {[%clk 0:00:04]}  Rb3+ {[%clk 0:00:09]} 60. Kc2 {[%clk 0:00:04]}  Ra3 {[%clk 0:00:09]} 61. Rh7+ {[%clk 0:00:04]}  Kd8 {[%clk 0:00:09]} 62. Rh8+ {[%clk 0:00:05]}  Kc7 {[%clk 0:00:09]} 63. Rh4 {[%clk 0:00:05]}  Ra2+ {[%clk 0:00:10]} 64. Kd1 {[%clk 0:00:05]}  Ra1+ {[%clk 0:00:10]} 65. Kc2 {[%clk 0:00:06]}  Ra2+ {[%clk 0:00:10]} 66. Kc3 {[%clk 0:00:06]}  Ra3+ {[%clk 0:00:10]} 67. Kb4 {[%clk 0:00:07]}  Rb3+ {[%clk 0:00:10]} 68. Ka4 {[%clk 0:00:07]}  c3 {[%clk 0:00:10]} 69. Rdd4 {[%clk 0:00:06]}  Rb6 {[%clk 0:00:09]} 70. Rh2 {[%clk 0:00:05]}  Rc6 {[%clk 0:00:10]} 71. Rc2 {[%clk 0:00:04]}  Bf5 {[%clk 0:00:09]} 72. Rc1 {[%clk 0:00:05]}  c2 {[%clk 0:00:10]} 73. Kb3 {[%clk 0:00:05]}  Be6+ {[%clk 0:00:10]} 74. Kb4 {[%clk 0:00:06]}  Rb6+ {[%clk 0:00:10]} 75. Kc3 {[%clk 0:00:06]}  Rc6+ {[%clk 0:00:11]} 76. Kb4 {[%clk 0:00:06]}  Bf5 {[%clk 0:00:11]} 77. Rc4 {[%clk 0:00:06]}  d5 {[%clk 0:00:10]} 78. Rxc6+ {[%clk 0:00:06]}  Kxc6 {[%clk 0:00:11]} 79. Kc3 {[%clk 0:00:06]}  Kd6 {[%clk 0:00:11]} 80. Rxc2 {[%clk 0:00:06]}  Bxc2 {[%clk 0:00:11]} 81. Kxc2 {[%clk 0:00:07]}  Ke5 {[%clk 0:00:10]} 82. Kd3 {[%clk 0:00:07]}  d4 {[%clk 0:00:11]} 83. Kd2 {[%clk 0:00:08]}  Ke4 {[%clk 0:00:11]} 84. Ke2 {[%clk 0:00:08]}  d3+ {[%clk 0:00:12]} 85. Kd2 {[%clk 0:00:09]}  Kd4 {[%clk 0:00:13]} 86. Kd1 {[%clk 0:00:09]}  Ke3 {[%clk 0:00:14]} 87. Ke1 {[%clk 0:00:10]}  d2+ {[%clk 0:00:15]} 88. Kd1 {[%clk 0:00:10]}  Kd3 {[%clk 0:00:16]} 1/2-1/2


[Site "https://www.chess.com"]